[Event "*** Titled Tuesday Blitz"]
[Site "Chess.com"]
[Date "2018.11.06"]
[Round "9"]
[White "Chessialist"]
[Black "RaphaeI"]
[Result "1-0"]
[WhiteElo "2594"]
[BlackElo "2570"]
[TimeControl "180+2"]
[EndTime "15:04:41 PST"]
[Termination "Chessialist won by resignation"]

1. e4 {[%clk 0:03:01.9]} 1... c5 {[%clk 0:02:56.7]} 2. Nf3 {[%clk 0:03:01.1]}
2... g6 {[%clk 0:02:57.1]} 3. d4 {[%clk 0:03:01.8]} 3... cxd4 {[%clk 0:02:57.7]}
4. Qxd4 {[%clk 0:03:02.6]} 4... Nf6 {[%clk 0:02:58.3]} 5. e5 {[%clk 0:03:04.2]}
5... Nc6 {[%clk 0:02:59.5]} 6. Qa4 {[%clk 0:03:05.9]} 6... Nd5 {[%clk
0:03:00.5]} 7. Qb3 {[%clk 0:03:07.5]} 7... e6 {[%clk 0:02:04.9]} 8. Bg5 {[%clk
0:03:06.8]} 8... Qc7 {[%clk 0:02:03.2]} 9. Nbd2 {[%clk 0:03:01.9]} 9... Nxe5
{[%clk 0:01:59.6]} 10. O-O-O {[%clk 0:02:58.2]} 10... Bg7 {[%clk 0:01:58.6]} 11.
Nxe5 {[%clk 0:02:57.1]} 11... Qxe5 {[%clk 0:01:53.4]} 12. h4 {[%clk 0:02:57.6]}
12... O-O {[%clk 0:01:48.8]} 13. Bc4 {[%clk 0:02:43]} 13... Nb6 {[%clk
0:01:41.3]} 14. Bd3 {[%clk 0:02:43.8]} 14... d5 {[%clk 0:01:33.3]} 15. f4 {[%clk
0:02:41.9]} 15... Qc7 {[%clk 0:01:31]} 16. h5 {[%clk 0:02:42.8]} 16... Bd7
{[%clk 0:01:30.2]} 17. hxg6 {[%clk 0:02:42.9]} 17... hxg6 {[%clk 0:01:30.2]} 18.
Bh6 {[%clk 0:02:40.2]} 18... Rfc8 {[%clk 0:01:31.2]} 19. Bxg7 {[%clk 0:02:39.6]}
19... Kxg7 {[%clk 0:01:33.1]} 20. Qb4 {[%clk 0:02:07.9]} 20... Qc5 {[%clk
0:01:34.3]} 21. Qxc5 {[%clk 0:02:06.3]} 21... Rxc5 {[%clk 0:01:36.2]} 22. g4
{[%clk 0:02:05.3]} 22... Rac8 {[%clk 0:01:25.9]} 23. Kb1 {[%clk 0:02:01.9]}
23... Bb5 {[%clk 0:01:25.5]} 24. Bxb5 {[%clk 0:02:00]} 24... Rxb5 {[%clk
0:01:26.2]} 25. f5 {[%clk 0:02:01.6]} 25... Nc4 {[%clk 0:01:20.3]} 26. Nb3
{[%clk 0:02:02]} 26... Ne3 {[%clk 0:01:09.6]} 27. Rde1 {[%clk 0:01:46.2]} 27...
Nxg4 {[%clk 0:00:52.6]} 28. fxe6 {[%clk 0:01:47]} 28... f5 {[%clk 0:00:50.3]}
29. e7 {[%clk 0:01:40]} 29... Re8 {[%clk 0:00:51]} 30. Nd4 {[%clk 0:01:41.2]}
30... Ra5 {[%clk 0:00:16.1]} 31. Ne6+ {[%clk 0:01:41.1]} 31... Kf6 {[%clk
0:00:16.7]} 32. b4 {[%clk 0:01:02]} 32... Ra3 {[%clk 0:00:16.6]} 33. Nc7 {[%clk
0:01:01.3]} 33... Rxe7 {[%clk 0:00:17]} 34. Nxd5+ {[%clk 0:01:02.5]} 1-0

[Event "*** Titled Tuesday Blitz"]
[Site "Chess.com"]
[Date "2018.11.06"]
[Round "9"]
[White "Jenia84"]
[Black "matiss90"]
[Result "1-0"]
[WhiteElo "2262"]
[BlackElo "2408"]
[TimeControl "180+2"]
[EndTime "15:04:57 PST"]
[Termination "Jenia84 won on time"]

1. d4 {[%clk 0:03:01.9]} 1... Nf6 {[%clk 0:02:58.2]} 2. Bf4 {[%clk 0:03:01.8]}
2... g6 {[%clk 0:02:57.7]} 3. Nc3 {[%clk 0:02:59.1]} 3... d6 {[%clk 0:02:56.3]}
4. Qd2 {[%clk 0:02:57.7]} 4... c6 {[%clk 0:02:57.6]} 5. e4 {[%clk 0:02:57.8]}
5... b5 {[%clk 0:02:39.3]} 6. Bd3 {[%clk 0:02:57.1]} 6... Nh5 {[%clk 0:02:21.4]}
7. Bg5 {[%clk 0:02:54.9]} 7... h6 {[%clk 0:02:21.3]} 8. Be3 {[%clk 0:02:54.7]}
8... e5 {[%clk 0:02:21.6]} 9. f3 {[%clk 0:02:50.6]} 9... Bg7 {[%clk 0:02:17]}
10. Nce2 {[%clk 0:02:50.5]} 10... Nd7 {[%clk 0:02:17]} 11. g4 {[%clk 0:02:49.8]}
11... Nf4 {[%clk 0:01:29.5]} 12. Nxf4 {[%clk 0:02:46.8]} 12... exf4 {[%clk
0:01:30.4]} 13. Bxf4 {[%clk 0:02:41.3]} 13... Bxd4 {[%clk 0:01:31.2]} 14. Bxd6
{[%clk 0:02:39.3]} 14... Bxb2 {[%clk 0:01:31.5]} 15. Rb1 {[%clk 0:02:39.4]}
15... Be5 {[%clk 0:01:32]} 16. Be2 {[%clk 0:02:15.5]} 16... Qh4+ {[%clk
0:01:28.1]} 17. Kf1 {[%clk 0:02:13.9]} 17... Qf6 {[%clk 0:01:26.9]} 18. Rd1
{[%clk 0:02:06.2]} 18... Bxd6 {[%clk 0:00:52]} 19. Qxd6 {[%clk 0:02:04.4]} 19...
Qxd6 {[%clk 0:00:52.9]} 20. Rxd6 {[%clk 0:02:04.4]} 20... Ne5 {[%clk 0:00:42.7]}
21. Nh3 {[%clk 0:01:48.3]} 21... Ke7 {[%clk 0:00:42.8]} 22. Rd4 {[%clk
0:01:43.8]} 22... Be6 {[%clk 0:00:43.4]} 23. Kf2 {[%clk 0:01:42.5]} 23... Rhd8
{[%clk 0:00:42.3]} 24. c3 {[%clk 0:01:39.9]} 24... Bxa2 {[%clk 0:00:27.7]} 25.
Ra1 {[%clk 0:01:39]} 25... Bc4 {[%clk 0:00:23.6]} 26. Nf4 {[%clk 0:01:28.2]}
26... Bxe2 {[%clk 0:00:21.9]} 27. Kxe2 {[%clk 0:01:25.9]} 27... a5 {[%clk
0:00:21.9]} 28. Rxd8 {[%clk 0:01:05.1]} 28... Kxd8 {[%clk 0:00:23.8]} 29. Nd3
{[%clk 0:01:03.9]} 29... Nxd3 {[%clk 0:00:22.5]} 30. Kxd3 {[%clk 0:01:04.9]}
30... a4 {[%clk 0:00:23.3]} 31. Kc2 {[%clk 0:01:05.8]} 31... g5 {[%clk
0:00:21.6]} 32. Kb2 {[%clk 0:00:59.1]} 32... Ke7 {[%clk 0:00:22.4]} 33. h4
{[%clk 0:00:59.1]} 33... Kf6 {[%clk 0:00:22.6]} 34. hxg5+ {[%clk 0:00:58.2]} 1-0

[Event "*** Titled Tuesday Blitz"]
[Site "Chess.com"]
[Date "2018.11.06"]
[Round "9"]
[White "MikaelyanArman"]
[Black "Fins0905"]
[Result "0-1"]
[WhiteElo "2713"]
[BlackElo "2616"]
[TimeControl "180+2"]
[EndTime "15:05:09 PST"]
[Termination "Fins0905 won by resignation"]

1. e4 {[%clk 0:03:01.9]} 1... d5 {[%clk 0:02:59.6]} 2. e5 {[%clk 0:03:02.1]}
2... c5 {[%clk 0:03:00.2]} 3. Nf3 {[%clk 0:03:01.6]} 3... Nc6 {[%clk 0:03:00.7]}
4. Bb5 {[%clk 0:02:59.9]} 4... Bg4 {[%clk 0:03:01.4]} 5. O-O {[%clk 0:02:57]}
5... e6 {[%clk 0:03:01.6]} 6. h3 {[%clk 0:02:57.8]} 6... Bh5 {[%clk 0:03:02.2]}
7. d3 {[%clk 0:02:53.1]} 7... Ne7 {[%clk 0:02:59.3]} 8. Bf4 {[%clk 0:02:50.4]}
8... a6 {[%clk 0:02:58]} 9. Bxc6+ {[%clk 0:02:51.6]} 9... Nxc6 {[%clk
0:02:59.9]} 10. Nbd2 {[%clk 0:02:52.7]} 10... Be7 {[%clk 0:03:00]} 11. Re1
{[%clk 0:02:51.3]} 11... b5 {[%clk 0:02:53.8]} 12. Nf1 {[%clk 0:02:48.9]} 12...
a5 {[%clk 0:02:44.2]} 13. Ng3 {[%clk 0:02:49.2]} 13... Bg6 {[%clk 0:02:45.7]}
14. a4 {[%clk 0:02:46.3]} 14... b4 {[%clk 0:02:40.9]} 15. Qd2 {[%clk 0:02:45.8]}
15... O-O {[%clk 0:02:34.4]} 16. Nh2 {[%clk 0:02:32.1]} 16... Nd4 {[%clk
0:02:25.4]} 17. Ng4 {[%clk 0:02:30.3]} 17... b3 {[%clk 0:02:21.4]} 18. c3 {[%clk
0:02:29.9]} 18... Nc2 {[%clk 0:02:21]} 19. Rac1 {[%clk 0:02:31.4]} 19... Nxe1
{[%clk 0:02:20.5]} 20. Rxe1 {[%clk 0:02:33.3]} 20... Qb6 {[%clk 0:01:56.8]} 21.
Bg5 {[%clk 0:02:33.9]} 21... Bxg5 {[%clk 0:01:43.1]} 22. Qxg5 {[%clk 0:02:35.8]}
22... Qd8 {[%clk 0:01:26.2]} 23. Qe3 {[%clk 0:02:20.4]} 23... d4 {[%clk
0:01:24.4]} 24. cxd4 {[%clk 0:02:14.8]} 24... Qxd4 {[%clk 0:01:24.2]} 25. Qf3
{[%clk 0:02:16]} 25... Qxb2 {[%clk 0:01:20.5]} 26. h4 {[%clk 0:02:08.3]} 26...
Qc3 {[%clk 0:01:15.3]} 27. Rd1 {[%clk 0:02:09.5]} 27... h5 {[%clk 0:01:08.9]}
28. Nf6+ {[%clk 0:01:46.5]} 28... gxf6 {[%clk 0:01:07.2]} 29. Qxf6 {[%clk
0:01:48.4]} 29... Qd4 {[%clk 0:00:39.2]} 30. Nxh5 {[%clk 0:01:36.9]} 30... Bxh5
{[%clk 0:00:35.2]} 31. Qg5+ {[%clk 0:01:38.3]} 31... Bg6 {[%clk 0:00:35.4]} 32.
h5 {[%clk 0:01:40.2]} 32... Kg7 {[%clk 0:00:21.4]} 33. Re1 {[%clk 0:01:37.5]}
33... Qxd3 {[%clk 0:00:20]} 34. g4 {[%clk 0:01:24.4]} 34... b2 {[%clk
0:00:18.8]} 35. Qf6+ {[%clk 0:01:15.3]} 35... Kh7 {[%clk 0:00:15]} 36. hxg6+
{[%clk 0:01:03.9]} 36... Qxg6 {[%clk 0:00:14.1]} 37. Qh4+ {[%clk 0:01:04.8]}
37... Kg7 {[%clk 0:00:14.9]} 38. Kg2 {[%clk 0:01:01]} 38... b1=Q {[%clk
0:00:14.3]} 39. Rxb1 {[%clk 0:01:02.1]} 39... Qxb1 {[%clk 0:00:15.8]} 40. Qf6+
{[%clk 0:01:03.1]} 40... Kg8 {[%clk 0:00:16.7]} 41. Qg5+ {[%clk 0:01:04.5]}
41... Qg6 {[%clk 0:00:17.7]} 0-1

[Event "*** Titled Tuesday Blitz"]
[Site "Chess.com"]
[Date "2018.11.06"]
[Round "9"]
[White "nitpicker"]
[Black "Zarikovs1999"]
[Result "0-1"]
[WhiteElo "2167"]
[BlackElo "2336"]
[TimeControl "180+2"]
[EndTime "15:05:20 PST"]
[Termination "Zarikovs1999 won on time"]

1. d4 {[%clk 0:03:01.9]} 1... Nf6 {[%clk 0:02:59.3]} 2. c4 {[%clk 0:03:02]} 2...
c5 {[%clk 0:03:00.8]} 3. d5 {[%clk 0:03:01.1]} 3... b5 {[%clk 0:03:02.2]} 4.
cxb5 {[%clk 0:03:02.3]} 4... a6 {[%clk 0:03:03.4]} 5. bxa6 {[%clk 0:03:03.6]}
5... g6 {[%clk 0:03:04.8]} 6. Nc3 {[%clk 0:03:04.2]} 6... Bg7 {[%clk 0:03:06.1]}
7. e4 {[%clk 0:03:05.2]} 7... O-O {[%clk 0:03:07.6]} 8. h3 {[%clk 0:03:00.9]}
8... Qa5 {[%clk 0:03:08.3]} 9. Bd2 {[%clk 0:02:57.2]} 9... Bxa6 {[%clk
0:03:04.5]} 10. Bxa6 {[%clk 0:02:56.3]} 10... Qxa6 {[%clk 0:03:04.9]} 11. Qe2
{[%clk 0:02:49.2]} 11... e6 {[%clk 0:03:05.3]} 12. d6 {[%clk 0:02:33.1]} 12...
Nc6 {[%clk 0:02:36.6]} 13. Qxa6 {[%clk 0:02:19]} 13... Rxa6 {[%clk 0:02:35.5]}
14. Nge2 {[%clk 0:02:20.3]} 14... Rb8 {[%clk 0:02:28.9]} 15. Rb1 {[%clk
0:02:15]} 15... Nb4 {[%clk 0:02:26.7]} 16. O-O {[%clk 0:02:05.5]} 16... Nxa2
{[%clk 0:02:21.4]} 17. Be3 {[%clk 0:02:03.3]} 17... c4 {[%clk 0:02:08.4]} 18.
Rfd1 {[%clk 0:01:52.4]} 18... Nxc3 {[%clk 0:02:05.1]} 19. Nxc3 {[%clk
0:01:36.3]} 19... Ne8 {[%clk 0:01:58.3]} 20. Bc5 {[%clk 0:01:27.1]} 20... Rc6
{[%clk 0:01:54.2]} 21. Ba3 {[%clk 0:01:23.7]} 21... Rb3 {[%clk 0:01:54.2]} 22.
Rbc1 {[%clk 0:01:19.2]} 22... f5 {[%clk 0:01:43.9]} 23. f3 {[%clk 0:00:56.4]}
23... Be5 {[%clk 0:01:31.8]} 24. Na4 {[%clk 0:00:48.4]} 24... Bf4 {[%clk
0:01:17.4]} 25. Rc2 {[%clk 0:00:46.9]} 25... Kf7 {[%clk 0:01:12.8]} 26. Nc5
{[%clk 0:00:44.8]} 26... Rxa3 {[%clk 0:01:07.8]} 27. bxa3 {[%clk 0:00:44.6]}
27... Rxc5 {[%clk 0:01:09]} 28. Kf2 {[%clk 0:00:43.1]} 28... Bxd6 {[%clk
0:01:08.2]} 29. Rdc1 {[%clk 0:00:39.7]} 29... Ra5 {[%clk 0:01:06.7]} 30. Rd1
{[%clk 0:00:33.3]} 30... Bc5+ {[%clk 0:00:56.2]} 31. Kg3 {[%clk 0:00:27.8]}
31... d6 {[%clk 0:00:52.6]} 32. exf5 {[%clk 0:00:27.4]} 32... gxf5 {[%clk
0:00:52.9]} 33. Rxc4 {[%clk 0:00:27.3]} 33... Rxa3 {[%clk 0:00:54]} 34. Rh4
{[%clk 0:00:26.9]} 34... Nf6 {[%clk 0:00:50.8]} 35. Kh2 {[%clk 0:00:23]} 35...
d5 {[%clk 0:00:50.3]} 36. Rc1 {[%clk 0:00:22.2]} 36... Bd6+ {[%clk 0:00:47.4]}
37. Kg1 {[%clk 0:00:22]} 37... Ra2 {[%clk 0:00:45.2]} 38. Rc6 {[%clk 0:00:17.4]}
38... Bg3 {[%clk 0:00:46.2]} 0-1

[Event "*** Titled Tuesday Blitz"]
[Site "Chess.com"]
[Date "2018.11.06"]
[Round "9"]
[White "olksuna"]
[Black "gmjlh"]
[Result "0-1"]
[WhiteElo "2526"]
[BlackElo "2623"]
[TimeControl "180+2"]
[EndTime "15:05:22 PST"]
[Termination "gmjlh won by resignation"]

1. c4 {[%clk 0:03:01.9]} 1... e5 {[%clk 0:02:59.4]} 2. g3 {[%clk 0:03:03]} 2...
c6 {[%clk 0:02:59.7]} 3. Nf3 {[%clk 0:03:02.8]} 3... e4 {[%clk 0:03:00.1]} 4.
Nd4 {[%clk 0:03:03.8]} 4... d5 {[%clk 0:03:00.6]} 5. cxd5 {[%clk 0:03:05.1]}
5... Qxd5 {[%clk 0:03:00.3]} 6. Nc2 {[%clk 0:03:06.1]} 6... Nf6 {[%clk
0:02:59.4]} 7. Nc3 {[%clk 0:03:06]} 7... Qe5 {[%clk 0:02:54.9]} 8. Bg2 {[%clk
0:03:02]} 8... Be7 {[%clk 0:02:49.4]} 9. d4 {[%clk 0:02:58]} 9... exd3 {[%clk
0:02:49.5]} 10. Qxd3 {[%clk 0:02:57.1]} 10... O-O {[%clk 0:02:46.3]} 11. O-O
{[%clk 0:02:47.9]} 11... Qh5 {[%clk 0:02:37.1]} 12. Bf4 {[%clk 0:02:41.3]} 12...
Rd8 {[%clk 0:02:33.2]} 13. Qf3 {[%clk 0:02:19.8]} 13... Bg4 {[%clk 0:02:33.8]}
14. Qe3 {[%clk 0:02:20.3]} 14... Bc5 {[%clk 0:02:27.4]} 15. Qe5 {[%clk
0:02:17.7]} 15... Qxe5 {[%clk 0:01:48.7]} 16. Bxe5 {[%clk 0:02:17.9]} 16... Nbd7
{[%clk 0:01:49.7]} 17. Bf4 {[%clk 0:02:16.6]} 17... Nb6 {[%clk 0:01:42]} 18.
Rad1 {[%clk 0:02:09.6]} 18... Nbd5 {[%clk 0:01:22.8]} 19. Nxd5 {[%clk
0:02:05.4]} 19... Nxd5 {[%clk 0:01:18.6]} 20. Bxd5 {[%clk 0:02:06]} 20... Rxd5
{[%clk 0:01:16]} 21. Rxd5 {[%clk 0:02:05.8]} 21... cxd5 {[%clk 0:01:16.1]} 22.
Rd1 {[%clk 0:01:52.7]} 22... Bxe2 {[%clk 0:01:08.2]} 23. Rxd5 {[%clk 0:01:52]}
23... Rc8 {[%clk 0:01:04]} 24. Nd4 {[%clk 0:01:36.2]} 24... Bc4 {[%clk
0:00:59.9]} 25. Rd7 {[%clk 0:01:36.8]} 25... Bxa2 {[%clk 0:00:57.8]} 26. Be5
{[%clk 0:01:00.3]} 26... h5 {[%clk 0:00:25]} 27. Kg2 {[%clk 0:00:40.4]} 27...
Re8 {[%clk 0:00:19.3]} 28. Bf4 {[%clk 0:00:31.7]} 28... Re7 {[%clk 0:00:14.7]}
29. Rd8+ {[%clk 0:00:29]} 29... Kh7 {[%clk 0:00:15.7]} 30. Nf5 {[%clk
0:00:28.9]} 30... Re2 {[%clk 0:00:15.6]} 31. Be3 {[%clk 0:00:21.5]} 31... Bxe3
{[%clk 0:00:16.3]} 32. Nxe3 {[%clk 0:00:22.5]} 32... Rxb2 {[%clk 0:00:17.5]} 33.
Rd7 {[%clk 0:00:22.2]} 33... a5 {[%clk 0:00:15.6]} 34. Kf3 {[%clk 0:00:21.4]}
34... a4 {[%clk 0:00:16.3]} 35. Rd4 {[%clk 0:00:21.7]} 35... b5 {[%clk
0:00:15.9]} 0-1

[Event "*** Titled Tuesday Blitz"]
[Site "Chess.com"]
[Date "2018.11.06"]
[Round "9"]
[White "Saitama_Hero"]
[Black "Me_ch_an"]
[Result "1-0"]
[WhiteElo "2346"]
[BlackElo "2220"]
[TimeControl "180+2"]
[EndTime "15:05:29 PST"]
[Termination "Saitama_Hero won by checkmate"]

1. d4 {[%clk 0:03:01.9]} 1... d5 {[%clk 0:02:59.7]} 2. c4 {[%clk 0:02:52.3]}
2... dxc4 {[%clk 0:03:01.6]} 3. Nf3 {[%clk 0:02:49.8]} 3... Nf6 {[%clk
0:02:59.6]} 4. e3 {[%clk 0:02:51.7]} 4... Bg4 {[%clk 0:02:48.2]} 5. Bxc4 {[%clk
0:02:52.6]} 5... e6 {[%clk 0:02:48.3]} 6. h3 {[%clk 0:02:51]} 6... Bh5 {[%clk
0:02:48.6]} 7. Nc3 {[%clk 0:02:52.5]} 7... Nbd7 {[%clk 0:02:48.1]} 8. g4 {[%clk
0:02:53.1]} 8... Bg6 {[%clk 0:02:48.6]} 9. h4 {[%clk 0:02:54.7]} 9... Bb4 {[%clk
0:02:47.7]} 10. h5 {[%clk 0:02:16.1]} 10... Be4 {[%clk 0:02:45.9]} 11. Rg1
{[%clk 0:02:13.5]} 11... Nd5 {[%clk 0:02:44.3]} 12. Bd2 {[%clk 0:02:11.9]} 12...
Bxc3 {[%clk 0:02:43]} 13. bxc3 {[%clk 0:02:13.8]} 13... c5 {[%clk 0:02:39.2]}
14. g5 {[%clk 0:02:02.8]} 14... a6 {[%clk 0:02:21.9]} 15. a4 {[%clk 0:01:59.9]}
15... Rc8 {[%clk 0:02:21.1]} 16. Ba2 {[%clk 0:01:41.3]} 16... cxd4 {[%clk
0:02:14.3]} 17. cxd4 {[%clk 0:01:42.5]} 17... Nc3 {[%clk 0:02:02.1]} 18. Bxc3
{[%clk 0:01:38.1]} 18... Rxc3 {[%clk 0:02:04]} 19. Nd2 {[%clk 0:01:39.4]} 19...
Bc2 {[%clk 0:01:50.8]} 20. Qf3 {[%clk 0:01:36.9]} 20... Qe7 {[%clk 0:01:25.8]}
21. Qxb7 {[%clk 0:01:27.5]} 21... O-O {[%clk 0:01:12.2]} 22. Qb2 {[%clk
0:01:27.5]} 22... Rfc8 {[%clk 0:01:11.5]} 23. Rc1 {[%clk 0:01:25.8]} 23... Nb6
{[%clk 0:01:04.8]} 24. Qxb6 {[%clk 0:01:12.4]} 24... Qa3 {[%clk 0:01:00.3]} 25.
Ke2 {[%clk 0:01:03.3]} 25... Qxa2 {[%clk 0:00:59.5]} 26. Kf3 {[%clk 0:00:53.3]}
26... Qd5+ {[%clk 0:00:54.9]} 27. Kg4 {[%clk 0:00:44.6]} 27... Bf5+ {[%clk
0:00:28.9]} 28. Kh4 {[%clk 0:00:45]} 28... h6 {[%clk 0:00:19.5]} 29. Rxc3 {[%clk
0:00:42]} 29... Rxc3 {[%clk 0:00:21.4]} 30. gxh6 {[%clk 0:00:34]} 30... g6
{[%clk 0:00:16.1]} 31. Qb8+ {[%clk 0:00:28.8]} 31... Kh7 {[%clk 0:00:16.1]} 32.
Qf8 {[%clk 0:00:28.7]} 32... Qxd4+ {[%clk 0:00:06.2]} 33. exd4 {[%clk
0:00:26.3]} 33... Rh3+ {[%clk 0:00:06.2]} 34. Kg5 {[%clk 0:00:27.9]} 34... Rxh5+
{[%clk 0:00:06.1]} 35. Kf6 {[%clk 0:00:28.3]} 35... Rxh6 {[%clk 0:00:07.5]} 36.
Qg7# {[%clk 0:00:24.4]} 1-0

[Event "*** Titled Tuesday Blitz"]
[Site "Chess.com"]
[Date "2018.11.06"]
[Round "9"]
[White "VladDobrov"]
[Black "MatyChess1"]
[Result "1-0"]
[WhiteElo "2726"]
[BlackElo "2529"]
[TimeControl "180+2"]
[EndTime "15:05:42 PST"]
[Termination "VladDobrov won by resignation"]

1. d4 {[%clk 0:03:01.9]} 1... Nf6 {[%clk 0:02:59.9]} 2. c4 {[%clk 0:03:02.5]}
2... e6 {[%clk 0:03:01.2]} 3. Nf3 {[%clk 0:03:01.2]} 3... Bb4+ {[%clk
0:03:00.9]} 4. Nbd2 {[%clk 0:03:01.8]} 4... c5 {[%clk 0:02:52.2]} 5. a3 {[%clk
0:03:02]} 5... Bxd2+ {[%clk 0:02:52.7]} 6. Qxd2 {[%clk 0:03:03.9]} 6... cxd4
{[%clk 0:02:43.4]} 7. Nxd4 {[%clk 0:03:04.5]} 7... O-O {[%clk 0:02:38.6]} 8. e3
{[%clk 0:03:04.1]} 8... b6 {[%clk 0:02:35.7]} 9. Be2 {[%clk 0:03:04.7]} 9... Bb7
{[%clk 0:02:37]} 10. O-O {[%clk 0:03:05.8]} 10... d5 {[%clk 0:02:34.3]} 11. Rd1
{[%clk 0:03:03.1]} 11... Nbd7 {[%clk 0:02:34.6]} 12. b4 {[%clk 0:03:00.9]} 12...
Ne5 {[%clk 0:02:29.3]} 13. cxd5 {[%clk 0:02:48.9]} 13... Ne4 {[%clk 0:02:19]}
14. Qe1 {[%clk 0:02:48.4]} 14... Qxd5 {[%clk 0:02:15.3]} 15. f3 {[%clk
0:02:10.2]} 15... Nf6 {[%clk 0:02:13.5]} 16. Bb2 {[%clk 0:01:57]} 16... Ng6
{[%clk 0:01:56.8]} 17. Qg3 {[%clk 0:01:36.7]} 17... Rac8 {[%clk 0:01:38.2]} 18.
e4 {[%clk 0:01:24.8]} 18... Qh5 {[%clk 0:01:16.6]} 19. Rd2 {[%clk 0:01:15.4]}
19... Qh6 {[%clk 0:01:13.9]} 20. Rad1 {[%clk 0:01:12.4]} 20... Nh5 {[%clk
0:01:09]} 21. Qf2 {[%clk 0:01:12.8]} 21... Nhf4 {[%clk 0:01:10.3]} 22. Bf1
{[%clk 0:01:14.1]} 22... Qg5 {[%clk 0:00:19.4]} 23. Kh1 {[%clk 0:01:13.6]} 23...
Qh5 {[%clk 0:00:11.6]} 24. Nb5 {[%clk 0:01:11.2]} 24... Ba8 {[%clk 0:00:03.9]}
25. Nxa7 {[%clk 0:01:09.7]} 25... Rb8 {[%clk 0:00:03.2]} 26. Nb5 {[%clk
0:01:10.6]} 26... h6 {[%clk 0:00:03.3]} 27. Nd6 {[%clk 0:01:10.3]} 27... Kh7
{[%clk 0:00:02.2]} 28. b5 {[%clk 0:01:06]} 28... f5 {[%clk 0:00:03.6]} 29. exf5
{[%clk 0:01:03.7]} 29... exf5 {[%clk 0:00:05.5]} 30. Qg3 {[%clk 0:00:51.1]}
30... Rfd8 {[%clk 0:00:03.7]} 31. a4 {[%clk 0:00:47.4]} 31... Rd7 {[%clk
0:00:04]} 32. Nc4 {[%clk 0:00:48.3]} 32... Rxd2 {[%clk 0:00:04.3]} 33. Rxd2
{[%clk 0:00:50.2]} 33... Rc8 {[%clk 0:00:05.3]} 34. Nxb6 {[%clk 0:00:49.3]}
34... Re8 {[%clk 0:00:06.9]} 35. Nxa8 {[%clk 0:00:49.7]} 35... Rxa8 {[%clk
0:00:08.8]} 36. b6 {[%clk 0:00:50.8]} 36... Rxa4 {[%clk 0:00:09.2]} 37. Rd7
{[%clk 0:00:47.7]} 37... Ne6 {[%clk 0:00:09.9]} 38. Rxg7+ {[%clk 0:00:35.3]}
38... Nxg7 {[%clk 0:00:10.3]} 39. Qc7 {[%clk 0:00:37]} 39... Ne7 {[%clk
0:00:03.9]} 40. Qxe7 {[%clk 0:00:38.5]} 40... Qg6 {[%clk 0:00:04.8]} 41. b7
{[%clk 0:00:38.4]} 41... Rb4 {[%clk 0:00:06.2]} 42. Qxb4 {[%clk 0:00:38.9]} 1-0

[Event "*** Titled Tuesday Blitz"]
[Site "Chess.com"]
[Date "2018.11.06"]
[Round "9"]
[White "volcanoexplorer"]
[Black "TheBigBadChessDad"]
[Result "1/2-1/2"]
[WhiteElo "2450"]
[BlackElo "2291"]
[TimeControl "180+2"]
[EndTime "15:05:55 PST"]
[Termination "Game drawn by repetition"]

1. e4 {[%clk 0:03:01.9]} 1... e5 {[%clk 0:03:00.9]} 2. Nf3 {[%clk 0:03:02.7]}
2... Nc6 {[%clk 0:03:01.4]} 3. Bc4 {[%clk 0:03:03.9]} 3... Bc5 {[%clk
0:02:58.4]} 4. O-O {[%clk 0:03:05]} 4... Nf6 {[%clk 0:02:55.6]} 5. d3 {[%clk
0:03:06.3]} 5... a6 {[%clk 0:02:56.6]} 6. c3 {[%clk 0:03:02.4]} 6... Ba7 {[%clk
0:02:56.6]} 7. Re1 {[%clk 0:03:03.1]} 7... d6 {[%clk 0:02:56.6]} 8. Nbd2 {[%clk
0:03:02.9]} 8... Na5 {[%clk 0:02:50.3]} 9. d4 {[%clk 0:02:54.9]} 9... Nxc4
{[%clk 0:02:43.5]} 10. Nxc4 {[%clk 0:02:56.8]} 10... exd4 {[%clk 0:02:43.8]} 11.
cxd4 {[%clk 0:02:51.7]} 11... O-O {[%clk 0:02:36.1]} 12. Bg5 {[%clk 0:02:51]}
12... h6 {[%clk 0:02:36.5]} 13. Bh4 {[%clk 0:02:50.8]} 13... Bg4 {[%clk
0:02:33.1]} 14. d5 {[%clk 0:01:49.2]} 14... Re8 {[%clk 0:02:21.5]} 15. h3 {[%clk
0:01:48.8]} 15... Bxf3 {[%clk 0:02:14.9]} 16. Qxf3 {[%clk 0:01:48.7]} 16... g5
{[%clk 0:02:04.4]} 17. Bg3 {[%clk 0:01:49]} 17... Nd7 {[%clk 0:01:54.8]} 18. e5
{[%clk 0:01:40.4]} 18... dxe5 {[%clk 0:01:42.4]} 19. Bxe5 {[%clk 0:01:38.2]}
19... Nxe5 {[%clk 0:01:33.2]} 20. Nxe5 {[%clk 0:01:37.5]} 20... Re7 {[%clk
0:01:23.1]} 21. Ng4 {[%clk 0:01:36.8]} 21... Rxe1+ {[%clk 0:01:12.8]} 22. Rxe1
{[%clk 0:01:38.7]} 22... Kg7 {[%clk 0:01:12.4]} 23. Re5 {[%clk 0:01:15]} 23...
Bd4 {[%clk 0:01:02.2]} 24. Rf5 {[%clk 0:01:06.9]} 24... f6 {[%clk 0:00:39.1]}
25. h4 {[%clk 0:00:47.4]} 25... Qe7 {[%clk 0:00:31.5]} 26. d6 {[%clk 0:00:30.9]}
26... cxd6 {[%clk 0:00:30.1]} 27. Rd5 {[%clk 0:00:29.5]} 27... Bc5 {[%clk
0:00:23]} 28. h5 {[%clk 0:00:18.2]} 28... Qe6 {[%clk 0:00:20.3]} 29. b4 {[%clk
0:00:15.6]} 29... Bxb4 {[%clk 0:00:16.4]} 30. Ne3 {[%clk 0:00:16.6]} 30... Re8
{[%clk 0:00:08.7]} 31. Nf5+ {[%clk 0:00:17.4]} 31... Kh7 {[%clk 0:00:09.9]} 32.
Qd3 {[%clk 0:00:06.4]} 32... Qe4 {[%clk 0:00:10.5]} 33. Qb3 {[%clk 0:00:04.1]}
33... Qe1+ {[%clk 0:00:08.3]} 34. Kh2 {[%clk 0:00:05.3]} 34... Re5 {[%clk
0:00:05.4]} 35. Ne3 {[%clk 0:00:05.1]} 35... Rxd5 {[%clk 0:00:05.9]} 36. Qxd5
{[%clk 0:00:06.5]} 36... Qxf2 {[%clk 0:00:05.9]} 37. Qf7+ {[%clk 0:00:07.3]}
37... Kh8 {[%clk 0:00:07]} 38. Qf8+ {[%clk 0:00:08.5]} 38... Kh7 {[%clk
0:00:08.4]} 39. Qf7+ {[%clk 0:00:05.9]} 39... Kh8 {[%clk 0:00:09.7]} 40. Qe8+
{[%clk 0:00:05.9]} 40... Kh7 {[%clk 0:00:10.9]} 41. Qf7+ {[%clk 0:00:07.1]}
1/2-1/2